lending/lending_fUSD_20251111
["ID","MTS","AMOUNT","RATE_DAILY","PERIOD"]
[393600414,1762839043403,-151.0,0.00038997,14]
[393600415,1762839043414,-151.0,0.00038997,14]
[393600416,1762839043424,-2000.0,0.00038999,2]
[393600417,1762839043434,-2000.0,0.00038999,2]
[393600418,1762839043446,-151.0,0.00038999,120]
[393600419,1762839043456,-151.0,0.00038999,120]
[393600420,1762839043467,-151.0,0.00038999,91]
[393600421,1762839043477,-286.46789,0.00038999,91]
[393600422,1762839043486,-151.0,0.00038999,120]
[393600423,1762839043496,-151.0,0.00038999,120]
[393600424,1762839043507,-151.0,0.00038999,120]
[393600425,1762839043516,-151.0,0.00038999,30]
[393600426,1762839043526,-763771.00757413,0.00039,2]
[393600427,1762839043536,-172.58398853,0.00039,10]
[393600428,1762839043546,-1570.09348638,0.00039,120]
[393600429,1762839043557,-514.30289769,0.00039,120]
[393600430,1762839043567,-1004.26378447,0.00039,7]
[393600431,1762839043577,-7750.91,0.00039,14]
[393600432,1762839043587,-152.895614,0.00039,120]
[393600433,1762839043597,-151.0,0.00039,120]
[393600434,1762839043606,-151.0,0.00039,120]
[393600435,1762839043615,-264.944354,0.00039,120]
[393600436,1762839043625,-151.0,0.00039,120]
[393600437,1762839043634,-219.92884,0.00039,120]
[393600438,1762839043644,-151.0,0.00039,120]
[393600439,1762839043653,-151.0,0.00039,120]
[393600440,1762839043662,-151.0,0.00039,120]
[393600441,1762839043672,-151.0,0.00039,120]
[393600442,1762839043681,-151.0,0.00039,120]
[393600443,1762839043693,-156.596614,0.00039,120]
[393600444,1762839043702,-151.0,0.00039,120]
[393600445,1762839043711,-151.0,0.00039,120]
[393600446,1762839043720,-151.0,0.00039,91]
[393600447,1762839043730,-151.0,0.00039,120]
[393600448,1762839043742,-173.500848,0.00039,120]
[393600449,1762839043752,-151.0,0.00039,120]
[393600450,1762839043762,-151.0,0.00039,120]
[393600451,1762839043773,-172.09582685,0.00039,2]
[393600452,1762839043783,-151.0,0.00039,30]
[393600453,1762839043792,-300.0,0.00039026,2]
[393600454,1762839043802,-300.0,0.00039042,2]
[393600455,1762839043811,-300.0,0.00039081,2]
[393600456,1762839043821,-300.0,0.00039082,2]
[393600457,1762839043830,-300.0,0.00039101,2]
[393600458,1762839043840,-300.0,0.0003912,2]
[393600459,1762839043850,-300.0,0.00039127,2]
[393600460,1762839043859,-151.0,0.00039155,2]
[393600461,1762839043869,-151.0,0.00039155,2]
[393600462,1762839043879,-263.62259856,0.00039155,2]
[393600463,1762839043889,-151.0,0.00039155,2]
[393600464,1762839043899,-151.0,0.00039155,2]
[393600465,1762839043909,-151.0,0.00039155,2]
[393600466,1762839043919,-151.0,0.00039155,2]
[393600467,1762839043929,-151.0,0.00039155,2]
[393600468,1762839043939,-151.0,0.00039155,2]
[393600469,1762839043949,-151.0,0.00039155,2]
[393600470,1762839043959,-151.0,0.00039155,2]
[393600471,1762839043969,-151.0,0.00039155,2]
[393600472,1762839043979,-151.0,0.00039155,2]
[393600473,1762839043988,-151.0,0.00039155,2]
[393600474,1762839043998,-151.0,0.00039155,2]
[393600475,1762839044007,-151.0,0.00039155,2]
[393600476,1762839044017,-151.0,0.00039155,2]
[393600477,1762839044151,-151.0,0.00039155,2]
[393600478,1762839044163,-151.0,0.00039155,2]
[393600479,1762839044173,-151.0,0.00039155,2]
[393600480,1762839044183,-151.0,0.00039155,2]
[393600481,1762839044193,-151.0,0.00039155,2]
[393600482,1762839044203,-151.0,0.00039155,2]
[393600483,1762839044213,-300.0,0.00039167,2]
[393600484,1762839044222,-572.56,0.00039177,120]
[393600485,1762839044231,-181739.8545,0.00039178,2]
[393600486,1762839044241,-156.97915682,0.00039178,2]
[393600487,1762839044251,-2855.3650831,0.0003918,120]
[393600488,1762839044260,-151.0,0.00039199,14]
[393600489,1762839044270,-367.8166,0.00039202,2]
[393600490,1762839044279,-12326.8125,0.00039202,2]
[393600491,1762839044289,-300.0,0.00039207,2]
[393600492,1762839044298,-300.0,0.0003921,2]
[393600493,1762839044308,-300.0,0.00039216,2]
[393600494,1762839044318,-300.0,0.00039242,2]
[393600495,1762839044327,-2500.0,0.00039261,14]
[393600496,1762839044337,-300.0,0.00039274,2]
[393600497,1762839044346,-500.0,0.00039275,120]
[393600498,1762839044356,-449.24671781,0.00039275,120]
[393600499,1762839044366,-1178.71,0.00039275,2]
[393600500,1762839044376,-1178.71,0.00039275,2]
[393600501,1762839044386,-1178.71,0.00039275,2]
[393600502,1762839044395,-1178.71,0.00039275,2]
[393600503,1762839044405,-1178.71,0.00039275,2]
[393600504,1762839044415,-1178.71,0.00039275,2]
[393600505,1762839044424,-1178.71,0.00039275,2]
[393600506,1762839044435,-1178.71,0.00039275,2]
[393600507,1762839044445,-1178.71,0.00039275,2]
[393600508,1762839044455,-1178.71,0.00039275,2]
[393600509,1762839044464,-1178.71,0.00039275,2]
[393600510,1762839044474,-1178.71,0.00039275,2]
[393600511,1762839044484,-1178.71,0.00039275,2]
[393600512,1762839044493,-1178.71,0.00039275,2]
[393600513,1762839044502,-1178.71,0.00039275,2]
[393600514,1762839044512,-1178.71,0.00039275,2]
[393600515,1762839044521,-1178.71,0.00039275,2]
[393600516,1762839044531,-1178.71,0.00039275,2]
[393600517,1762839044540,-1178.71,0.00039275,2]
[393600518,1762839044549,-1178.71,0.00039275,2]
[393600519,1762839044558,-1178.71,0.00039275,2]
[393600520,1762839044568,-1178.71,0.00039275,2]
[393600521,1762839044577,-1178.71,0.00039275,2]
[393600522,1762839044587,-1178.81643746,0.00039275,2]
[393600523,1762839044596,-505.15485625,0.00039275,120]
[393600524,1762839044605,-300.0,0.00039275,2]
[393600525,1762839044616,-300.0,0.00039275,2]
[393600526,1762839044625,-300.0,0.00039275,2]
[393600527,1762839044634,-300.0,0.00039275,2]
[393600528,1762839044644,-300.0,0.00039275,2]
[393600529,1762839044654,-300.0,0.00039275,2]
[393600530,1762839044664,-300.0,0.00039275,2]
[393600531,1762839044674,-300.0,0.00039275,2]
[393600532,1762839044687,-300.0,0.00039275,2]
[393600533,1762839044697,-300.0,0.00039275,2]
[393600534,1762839044707,-300.0,0.00039275,2]
[393600535,1762839044716,-300.0,0.00039275,2]
[393600536,1762839044727,-300.0,0.00039275,2]
[393600537,1762839044737,-333.74453563,0.00039275,2]
[393600538,1762839044746,-1000.0,0.00039275,2]
[393600539,1762839044757,-1000.0,0.00039275,2]
[393600540,1762839044768,-1000.0,0.00039275,2]
[393600541,1762839044779,-1000.0,0.00039275,2]
[393600542,1762839044790,-1000.0,0.00039275,2]
[393600543,1762839044801,-1000.0,0.00039275,2]
[393600544,1762839044812,-1000.0,0.00039275,2]
[393600545,1762839044823,-1000.0,0.00039275,2]
[393600546,1762839044833,-1000.0,0.00039275,2]
[393600547,1762839044844,-1000.0,0.00039275,2]
[393600548,1762839044855,-1000.0,0.00039275,2]
[393600549,1762839044866,-1000.0,0.00039275,2]
[393600550,1762839044876,-1084.87375295,0.00039275,2]
[393600551,1762839044886,-524.49887495,0.00039275,120]
[393600552,1762839044896,-500.0,0.00039275,120]
[393600553,1762839044909,-1000.0,0.00039278,2]
[393600554,1762839044919,-1508.70144043,0.00039292,2]
[393600555,1762839044930,-209.172266,0.00039292,120]
[393600556,1762839044940,-154.798207,0.00039292,120]
[393600557,1762839044950,-152.885462,0.00039292,30]
[393600558,1762839044960,-160.557224,0.00039292,120]
[393600559,1762839044970,-160.557224,0.00039292,120]
[393600560,1762839044980,-160.557224,0.00039292,120]
[393600561,1762839044990,-160.557224,0.00039292,120]
[393600562,1762839045000,-183.830681,0.00039292,120]
[393600563,1762839045010,-151.0,0.00039292,120]
[393600564,1762839045020,-166.195446,0.00039292,120]
[393600565,1762839045029,-572.56,0.00039301,120]
[393600566,1762839045041,-4420.4255272,0.00039302,2]
[393600567,1762839045051,-923.667688,0.00039302,2]
[393600568,1762839045060,-150170.4603778,0.00039302,2]
[393600569,1762839045071,-2647.7134057,0.00039302,2]
[393600570,1762839045080,-151.0,0.00039302,120]
[393600571,1762839045091,-151.0,0.00039302,120]
[393600573,1762839045100,-151.0,0.00039302,120]
[393600575,1762839045110,-213.591452,0.00039302,120]
[393600577,1762839045120,-151.0,0.00039302,120]
[393600579,1762839045129,-151.0,0.00039302,120]
[393600581,1762839045139,-151.0,0.00039302,120]
[393600583,1762839045148,-194.985996,0.00039302,120]
[393600586,1762839045157,-151.0,0.00039302,120]
[393600589,1762839045167,-151.0,0.00039302,91]
[393600592,1762839045177,-151.0,0.00039302,120]
[393600596,1762839045186,-151.0,0.00039302,120]
[393600600,1762839045195,-169.283365,0.00039302,120]
[393600602,1762839045204,-151.0,0.00039302,30]
[393600604,1762839045214,-300.0,0.00039315,2]
[393600606,1762839045223,-300.0,0.0003932,2]
[393600608,1762839045232,-300.0,0.00039362,2]
[393600611,1762839045241,-520.75605094,0.00039373,5]
[393600614,1762839045250,-502.33592152,0.00039373,5]
[393600616,1762839045259,-467.94625902,0.00039373,5]
[393600619,1762839045268,-505.14650434,0.00039373,5]
[393600622,1762839045278,-202.58152099,0.00039376,15]
[393600625,1762839045287,-203.17721759,0.00039376,15]
[393600628,1762839045296,-151.0,0.00039376,15]
[393600631,1762839045306,-151.0,0.00039376,15]
[393600633,1762839045315,-151.0,0.00039376,15]
[393600634,1762839045324,-200.0,0.00039376,15]
[393600635,1762839045333,-500.0,0.00039377,120]
[393600636,1762839045343,-500.0,0.00039377,120]
[393600637,1762839045352,-500.0,0.00039377,7]
[393600639,1762839045361,-500.0,0.00039377,120]
[393600641,1762839045371,-464.0100386,0.00039377,120]
[393600643,1762839045379,-638.95883668,0.00039377,120]
[393600645,1762839045389,-500.0,0.00039377,120]
[393600647,1762839045398,-319.95081928,0.00039377,120]
[393600649,1762839045408,-522.08413598,0.00039377,120]
[393600650,1762839045418,-500.0,0.00039377,120]
[393600651,1762839045427,-500.0,0.00039377,30]
[393600652,1762839045436,-572.56,0.00039377,120]
[393600653,1762839045447,-500.0,0.00039377,120]
[393600654,1762839045456,-151.0,0.00039378,7]
[393600655,1762839045466,-1242.0,0.00039378,7]
[393600656,1762839045475,-1242.0,0.00039378,7]
[393600657,1762839045485,-151.0,0.00039378,7]
[393600658,1762839045494,-151.0,0.00039378,7]
[393600659,1762839045504,-1242.0,0.00039378,7]
[393600660,1762839045514,-151.0,0.00039378,7]
[393600662,1762839045524,-152.0,0.00039378,7]
[393600663,1762839045533,-1242.0,0.00039378,7]
[393600664,1762839045542,-152.0,0.00039378,7]
[393600665,1762839045552,-1242.0,0.00039378,7]
[393600666,1762839045563,-151.0,0.00039378,7]
[393600667,1762839045573,-302.54022849,0.00039378,7]
[393600668,1762839045584,-151.0,0.00039378,7]
[393600669,1762839045594,-1242.0,0.00039378,7]
[393600670,1762839045605,-151.0,0.00039378,7]
[393600671,1762839045615,-1242.0,0.00039378,7]
[393600672,1762839045624,-151.0,0.00039378,7]
[393600673,1762839045635,-1242.0,0.00039378,7]
[393600674,1762839045643,-151.0,0.00039378,7]
[393600675,1762839045657,-1242.0,0.00039378,7]
[393600676,1762839045667,-151.0,0.00039378,7]
[393600677,1762839045676,-1242.0,0.00039378,7]
[393600679,1762839045689,-151.0,0.00039378,7]
[393600680,1762839045699,-1242.0,0.00039378,7]
[393600681,1762839045709,-151.0,0.00039378,7]
[393600682,1762839045719,-1242.0,0.00039378,7]
[393600683,1762839045728,-151.0,0.00039378,7]
[393600684,1762839045739,-1242.0,0.00039378,7]
[393600686,1762839045748,-151.0,0.00039378,7]
[393600687,1762839045757,-1242.0,0.00039378,7]
[393600688,1762839045769,-151.0,0.00039378,7]
[393600689,1762839045781,-1242.0,0.00039378,7]
[393600690,1762839045791,-151.0,0.00039378,7]
[393600691,1762839045802,-1242.0,0.00039378,7]
[393600692,1762839045811,-151.0,0.00039378,7]
[393600693,1762839045822,-1242.0,0.00039378,7]
[393600694,1762839045832,-151.0,0.00039378,7]
[393600695,1762839045841,-1242.0,0.00039378,7]
[393600696,1762839045851,-151.0,0.00039378,7]
[393600697,1762839045861,-1242.0,0.00039378,7]
[393600698,1762839045871,-151.0,0.00039378,7]
[393600699,1762839045881,-1242.0,0.00039378,7]
[393600700,1762839045891,-151.0,0.00039378,7]
[393600701,1762839045901,-1242.0,0.00039378,7]
[393600702,1762839045912,-257.89535134,0.00039378,7]
[393600703,1762839045922,-560.96835463,0.00039378,7]
[393600704,1762839045931,-151.0,0.00039378,120]
[393600705,1762839045942,-160.557224,0.00039378,120]
[393600706,1762839045952,-160.557224,0.00039378,120]
[393600707,1762839045962,-160.557224,0.00039378,120]
[393600708,1762839045971,-160.557224,0.00039378,120]
[393600709,1762839045981,-191.645498,0.00039378,120]
[393600710,1762839045991,-1242.0,0.00039378,7]
[393600711,1762839046001,-151.0,0.00039378,7]
[393600712,1762839046012,-1242.0,0.00039378,7]
[393600713,1762839046022,-151.0,0.00039378,7]
[393600714,1762839046032,-615.87690974,0.00039378,7]
[393600715,1762839046042,-1242.0,0.00039378,7]
[393600716,1762839046051,-151.0,0.00039378,7]
[393600717,1762839046062,-152.0,0.00039378,7]
[393600718,1762839046072,-1242.0,0.00039378,7]
[393600719,1762839046082,-151.0,0.00039378,7]
[393600720,1762839046091,-152.0,0.00039378,7]
[393600721,1762839046101,-1242.0,0.00039378,7]
[393600722,1762839046110,-151.0,0.00039378,7]
[393600723,1762839046120,-152.0,0.00039378,7]
[393600724,1762839046130,-1242.0,0.00039378,7]
[393600725,1762839046139,-151.0,0.00039378,7]
[393600726,1762839046149,-152.0,0.00039378,7]
[393600727,1762839046159,-151.0,0.00039378,7]
[393600728,1762839046168,-152.0,0.00039378,7]
[393600729,1762839046178,-151.0,0.00039378,7]
[393600730,1762839046187,-1242.0,0.00039378,7]
[393600731,1762839046196,-152.0,0.00039378,7]
[393600732,1762839046206,-152.0,0.00039378,7]
[393600733,1762839046215,-1242.0,0.00039378,7]
[393600734,1762839046225,-151.0,0.00039378,7]
[393600735,1762839046235,-1242.0,0.00039378,7]
[393600736,1762839046244,-151.0,0.00039378,7]
[393600737,1762839046253,-152.0,0.00039378,7]
[393600738,1762839046261,-1242.0,0.00039378,7]
[393600739,1762839046271,-151.0,0.00039378,7]
[393600740,1762839046280,-152.0,0.00039378,7]
[393600741,1762839046290,-152.0,0.00039378,7]
[393600742,1762839046300,-1242.0,0.00039378,7]
[393600743,1762839046310,-151.0,0.00039378,7]
[393600744,1762839046320,-152.0,0.00039378,7]
[393600745,1762839046330,-152.0,0.00039378,7]
[393600746,1762839046340,-820.28360877,0.00039378,7]
[393600747,1762839046350,-151.0,0.00039378,7]
[393600748,1762839046359,-152.0,0.00039378,7]
[393600749,1762839046369,-151.16701834,0.00039378,7]
[393600750,1762839046378,-151.0,0.00039378,7]
[393600751,1762839046388,-152.0,0.00039378,7]
[393600752,1762839046397,-151.0,0.00039378,7]
[393600753,1762839046410,-152.0,0.00039378,7]
[393600754,1762839046419,-151.0,0.00039378,7]
[393600755,1762839046428,-152.0,0.00039378,7]
[393600756,1762839046438,-250.38392195,0.00039378,7]
[393600757,1762839046448,-151.0,0.00039378,7]
[393600758,1762839046458,-152.0,0.00039378,7]
[393600759,1762839046468,-151.0,0.00039378,7]
[393600760,1762839046478,-152.0,0.00039378,7]
[393600761,1762839046488,-151.0,0.00039378,7]
[393600762,1762839046498,-152.0,0.00039378,7]
[393600763,1762839046508,-151.0,0.00039378,7]
[393600764,1762839046517,-152.0,0.00039378,7]
[393600765,1762839046527,-151.0,0.00039378,7]
[393600766,1762839046537,-152.0,0.00039378,7]
[393600767,1762839046546,-151.0,0.00039378,7]
[393600768,1762839046556,-152.0,0.00039378,7]
[393600769,1762839046566,-151.0,0.00039378,7]
[393600770,1762839046576,-152.0,0.00039378,7]
[393600771,1762839046586,-151.0,0.00039378,7]
[393600772,1762839046595,-152.0,0.00039378,7]
[393600773,1762839046606,-151.0,0.00039378,7]
[393600774,1762839046616,-222.71219546,0.00039378,7]
[393600775,1762839046661,-199.3880896,0.00039378,7]
[393600776,1762839046671,-300.0,0.00039385,2]
[393600777,1762839046680,-222.90257369,0.00039387,2]
[393600778,1762839046692,-184.05080953,0.00039387,8]
[393600779,1762839046701,-150.0,0.00039387,30]
[393600780,1762839046711,-3306.53058215,0.00039388,2]
[393600782,1762839046721,-421.35,0.00039393,2]
[393600784,1762839046731,-500.0,0.000394,14]
[393600785,1762839046740,-300.0,0.00039403,2]
[393600786,1762839046750,-150.0,0.0003941,7]
[393600787,1762839046759,-300.0,0.00039415,2]
[393600788,1762839046769,-300.0,0.00039418,2]
[393600790,1762839046778,-208.85288909,0.00039424,7]
[393600792,1762839046788,-300.0,0.00039425,2]
[393600793,1762839046798,-300.0,0.00039426,2]
[393600794,1762839046809,-152.0,0.00039428,7]
[393600795,1762839046818,-152.0,0.00039428,7]
[393600796,1762839046828,-152.0,0.00039428,7]
[393600798,1762839046838,-152.0,0.00039428,7]
[393600800,1762839046847,-158.72,0.00039429,2]
[393600801,1762839046857,-300.0,0.00039438,2]
[393600802,1762839046867,-300.0,0.00039445,2]
[393600803,1762839046877,-168.0,0.00039449,2]
[393600804,1762839046886,-300.0,0.0003945,2]
[393600805,1762839046897,-300.0,0.00039451,2]
[393600806,1762839046907,-1000.0,0.00039452,120]
[393600807,1762839046916,-1000.0,0.00039452,120]
[393600808,1762839046926,-803.46508886,0.00039452,120]
[393600809,1762839046936,-322.29297541,0.00039454,2]
[393600810,1762839046946,-300.0,0.00039467,2]
[393600811,1762839046955,-315.96350358,0.00039468,2]
[393600812,1762839046964,-500.0,0.00039469,120]
[393600813,1762839046974,-300.0,0.00039471,2]
[393600814,1762839046983,-504.54302718,0.00039473,5]
[393600815,1762839046994,-151.0,0.00039478,2]
[393600816,1762839047003,-300.0,0.00039478,2]
[393600817,1762839047014,-211.3476068,0.00039478,2]
[393600818,1762839047023,-300.0,0.00039486,2]
[393600819,1762839047032,-1505835.11350885,0.00039487,30]
[393600820,1762839047180,-1231.6255466,0.00039487,30]
[393600821,1762839047192,-1619.7181,0.00039487,30]
[393600822,1762839047203,-1039.26571707,0.00039487,30]
[393600823,1762839047215,-3240.35295883,0.00039487,30]
[393600824,1762839047250,-9085.91419931,0.00037,2]
[393600825,1762839047259,-60260.03060792,0.00039487,30]
[393600826,1762839047272,-4093.13656325,0.00039487,30]
[393600827,1762839047283,-309.37523844,0.00039487,30]
[393600828,1762839047294,-1081.0,0.00039487,30]
[393600829,1762839047306,-534.0,0.00039487,30]
[393600830,1762839047369,-500.0,0.00017999,2]
[393600831,1762839047379,-516.65379603,0.00017999,2]
[393600832,1762839047389,-4258.34620397,0.00039387,2]
[393600833,1762839047401,-1080.0,0.00039387,2]
[393600834,1762839047415,-1000.0,0.00039387,2]
[393600835,1762839061522,195.0,0.00019798,120]
[393600836,1762839061624,195.0,0.00021999,120]
[393600837,1762839063549,300.0,0.00019798,60]
[393600838,1762839063650,300.0,0.00021999,60]
[393600839,1762839065777,203.27418758,0.00019798,120]
[393600841,1762839271404,-170.82942577,0.00017988,2]
[393600842,1762839276351,-333.34,0.00017988,2]
[393600843,1762839279369,-254.31149853,0.00017988,2]
[393600844,1762839280729,-245.96501431,0.00017988,2]
[393600845,1762839282453,-195.55406139,0.00017988,2]
[393600846,1762839282477,-44.77223589,0.00017989,2]
[393600847,1762839286635,-106.22776411,0.00017989,2]
[393600848,1762839286658,-60.43223589,0.00017989,2]
[393600883,1762839976315,-181.61726826,0.00017,2]
[393600900,1762840232501,-68.38273174,0.00017,2]
[393600901,1762840232511,-200.34578431,0.00017898,2]
[393600902,1762840232520,-851.92205124,0.00017899,2]
[393600903,1762840232530,-165.48581708,0.00017997,2]
[393600904,1762840232541,-372.51418292,0.00017997,2]
[393600905,1762840232550,-1200.0,0.00017998,2]
[393600906,1762840232559,-300.0,0.00017998,2]
[393600907,1762840232569,-76.27488035,0.00017999,2]
[393600908,1762840232580,-423.72511965,0.00017999,2]
[393600909,1762840232589,-528.19457176,0.00017999,2]
[393600910,1762840232598,-500.0,0.00017999,2]
[393600911,1762840232608,-500.0,0.00017999,2]
[393600913,1762840232617,-500.0,0.00017999,2]
[393600915,1762840232626,-500.0,0.00017999,2]
[393600917,1762840232635,-500.0,0.00017999,2]
[393600918,1762840232645,-637.84479076,0.00017999,2]
[393600919,1762840232656,-447.62807937,0.00017999,2]
[393600920,1762840232665,-550.0,0.00017999,2]
[393600922,1762840232675,-179.869625,0.00018,2]
[393600924,1762840232684,-282.28772,0.00018,2]
[393600927,1762840232697,-163.318127,0.00018,2]
[393600929,1762840232706,-502.7946782,0.00018,2]
[393600931,1762840232715,-500.0,0.00018,2]
[393600933,1762840232724,-500.0,0.00018,2]
[393600934,1762840232734,-242.46001948,0.00018,2]
[393600936,1762840232743,-500.0,0.00018,2]
[393600938,1762840232752,-500.7979506,0.00018,2]
[393600940,1762840232762,-500.0,0.00018,2]
[393600941,1762840232771,-504.54302718,0.00018,2]
[393600942,1762840232780,-1286.0,0.00019734,2]
[393600943,1762840232790,-179.869625,0.00023427,2]
[393600944,1762840232799,-282.28772,0.00023427,2]
[393600945,1762840232808,-163.318127,0.00023427,2]
[393600948,1762840232818,-671.53905782,0.00024799,2]
[393600951,1762840232827,-500.0,0.00024799,2]
[393600953,1762840232837,-500.0,0.00024899,2]
[393600955,1762840232847,-517.50055234,0.00024899,2]
[393600956,1762840232858,-851.92205124,0.00025397,3]
[393600957,1762840232869,-150.0,0.00026,30]
[393600958,1762840232879,-282.28772,0.0002642,3]
[393600959,1762840232890,-179.869625,0.0002642,3]
[393600960,1762840232899,-163.318127,0.0002642,3]
[393600961,1762840232908,-540.93365665,0.00027933,5]
[393600962,1762840232917,-179.869625,0.00028854,2]
[393600963,1762840232927,-282.28772,0.00028854,2]
[393600964,1762840232936,-163.318127,0.00028854,2]
[393600965,1762840232946,-282.28772,0.00029808,3]
[393600966,1762840232955,-179.869625,0.00029808,3]
[393600967,1762840232964,-163.318127,0.00029808,3]
[393600968,1762840232973,-358.15,0.000316,30]
[393600969,1762840232982,-1554.289,0.0003254,32]
[393600970,1762840232991,-190.141,0.0003254,32]
[393600971,1762840233000,-151.0,0.00032807,2]
[393600972,1762840233009,-151.0,0.00032807,2]
[393600973,1762840233019,-151.0,0.00032807,2]
[393600974,1762840233031,-151.0,0.00032807,2]
[393600975,1762840233041,-151.0,0.00032807,2]
[393600976,1762840233050,-151.0,0.00032807,2]
[393600977,1762840233059,-151.0,0.00032807,2]
[393600978,1762840233069,-255.72336996,0.00032807,2]
[393600979,1762840233079,-500.0,0.00032824,2]
[393600980,1762840233088,-500.0,0.00032824,2]
[393600981,1762840233097,-500.0,0.00032824,2]
[393600982,1762840233109,-500.0,0.00032824,2]
[393600983,1762840233118,-500.0,0.00032824,2]
[393600984,1762840233128,-500.0,0.00032824,2]
[393600985,1762840233138,-500.0,0.00032824,2]
[393600986,1762840233148,-500.0,0.00032824,2]
[393600987,1762840233157,-500.0,0.00032824,2]
[393600988,1762840233167,-500.0,0.00032824,2]
[393600989,1762840233176,-500.0,0.00032824,2]
[393600990,1762840233186,-227.67867147,0.00032824,2]
[393600991,1762840233199,-272.32132853,0.00032824,2]
[393600992,1762840233208,-500.0,0.00032824,2]
[393600993,1762840233217,-1597.0,0.00032827,2]
[393600994,1762840233227,-820.0,0.00032827,2]
[393600995,1762840233236,-969.123,0.00032827,2]
[393600996,1762840233245,-6479.0,0.00032827,2]
[393600997,1762840233255,-151.0,0.00033,14]
[393600998,1762840233264,-256.11,0.000331,7]
[393600999,1762840233273,-218.62,0.00033128,2]
[393601000,1762840233291,-282.28772,0.00033195,3]
[393601001,1762840233302,-179.869625,0.00033195,3]
[393601002,1762840233311,-163.318127,0.00033195,3]
[393601003,1762840233321,-999.0,0.00033595,3]
[393601004,1762840233330,-179.869625,0.00034,15]
[393601005,1762840233340,-282.28772,0.00034,15]
[393601006,1762840233350,-163.318127,0.00034,15]
[393601007,1762840233360,-300.0,0.00034194,7]
[393601008,1762840233370,-282.28772,0.0003428,2]
[393601009,1762840233379,-179.869625,0.0003428,2]
[393601010,1762840233388,-163.318127,0.0003428,2]
[393601011,1762840233399,-151.0,0.00034521,30]
[393601012,1762840233409,-157.37,0.0003458,120]
[393601013,1762840233419,-78.07383202,0.00034583,31]
[393601014,1762840233432,-101.79579298,0.00034583,31]
[393601015,1762840233442,-165.55420702,0.00034583,31]
[393601016,1762840233453,-116.73351298,0.00034583,31]
[393601017,1762840233463,-163.318127,0.00034583,31]
[393601018,1762840233472,-87.38836002,0.00034613,7]
[393601040,1762840240458,-500.0,0.00032824,2]
[393601041,1762840240467,-500.0,0.00032824,2]
[393601042,1762840240476,-500.0,0.00032824,2]
[393601043,1762840240486,-500.0,0.00032824,2]
[393601044,1762840240496,-500.0,0.00032824,2]
[393601045,1762840240505,-500.0,0.00032824,2]
[393601046,1762840240515,-500.0,0.00032824,2]
[393601047,1762840240525,-500.0,0.00032824,2]
[393601048,1762840240534,-500.0,0.00032824,2]
[393601049,1762840240543,-500.0,0.00032824,2]
[393601050,1762840240552,-68.25579482,0.00032824,2]
[393601051,1762840240564,-431.74420518,0.00032824,2]
[393601052,1762840240573,-500.0,0.00032824,2]
[393601053,1762840240582,-500.0,0.00032824,2]
[393601054,1762840240591,-345.35579482,0.00032824,2]
[393601055,1762840240679,-154.64420518,0.00032824,2]
[393601056,1762840240688,-500.0,0.00032824,2]
[393601057,1762840240699,-500.0,0.00032824,2]